[Event "European Blitz-ch 2018"]
[Site "Skopje"]
[Date "2018.12.06"]
[Round "3"]
[White "Andonovski, Ljubisa"]
[Black "Van Foreest, Lucas"]
[Result "1/2-1/2"]
[ECO "E05"]
[WhiteElo "2287"]
[BlackElo "2500"]
[Annotator "RC"]
[PlyCount "104"]
[EventDate "2018.12.06"]
[EventType "swiss"]
[EventCountry "MKD"]
[SourceTitle "playchess.com"]
[Source "ChessBase"]
[SourceQuality "1"]
[TimeControl "180+2"]

1. d4 {[%emt 0:00:01]} Nf6 {[%emt 0:00:00]} 2. c4 {[%emt 0:00:01]} e6 {[%emt 0:00:00]} 3. Nf3 {[%emt 0:03:04]} d5 4. g3 {[%emt 0:00:00]} Be7 {[%emt 0:00:00]} 5. Bg2 {[%emt 0:00:00]} O-O {[%emt 0:00:01]} 6. O-O {[%emt 0:00:00]} dxc4 {[%emt 0:00:01]} 7. Qc2 {[%emt 0:00:00]} a6 {[%emt 0:00:00]} 8. a4 {[%emt 0:00:00]} Bd7 {[%emt 0:00:01]} 9. Qxc4 {[%emt 0:00:00]} Bc6 {[%emt 0:00:01]} 10. Bf4 {[%emt 0:00:00]} Bd6 {[%emt 0:00:01]} 11. Bg5 {[%emt 0:00:00]} Nbd7 {[%emt 0:00:04]} 12. Nc3 {[%emt 0:00:00]} h6 {[%emt 0:00:09]} 13. Bxf6 {[%emt 0:00:00]} Nxf6 {[%emt 0:00:01]} 14. Qd3 {[%emt 0:00:00]} Bb4 {[%emt 0:00:06]} 15. Ne5 {[%emt 0:00:00]} Bxg2 16. Kxg2 {[%emt 0:00:00]} a5 {[%emt 0:00:31]} 17. Rfd1 {[%emt 0:00:00]} c6 {[%emt 0:00:01]} 18. Kg1 {[%emt 0:00:00]} Qe7 {[%emt 0:00:13]} 19. Ne4 {[%emt 0:00:00]} Nxe4 {[%emt 0:00:04]} 20. Qxe4 {[%emt 0:00:00]} Rfd8 {[%emt 0:00:06]} 21. e3 {[%emt 0:00:00]} Qd6 {[%emt 0:00:13]} 22. Nd3 {[%emt 0:00:00]} Qd5 {[%emt 0:00:07]} 23. Qxd5 {[%emt 0:00:00]} exd5 {[%emt 0:00:05]} 24. Nxb4 {[%emt 0:00:00]} axb4 {[%emt 0:00:01]} 25. a5 {[%emt 0:00:00]} Ra6 {[%emt 0:00:12]} 26. Ra4 {[%emt 0:00:00]} b5 {[%emt 0:00:07]} 27. Rxb4 {[%emt 0:00:00]} Rxa5 {[%emt 0:00:01]} 28. Rc1 {[%emt 0:00:00]} Rd6 {[%emt 0:00:03]} 29. Rb3 {[%emt 0:00:00]} Kf8 {[%emt 0:00:06]} 30. Ra3 {[%emt 0:00:00]} Rxa3 {[%emt 0:00:08]} 31. bxa3 {[%emt 0:00:00]} Ke7 {[%emt 0:00:04]} 32. a4 {[%emt 0:00:00]} bxa4 {[%emt 0:00:27]} 33. Ra1 {[%emt 0:00:00]} Rd7 {[%emt 0:00:01]} 34. Rxa4 {[%emt 0:00:00]} Rb7 {[%emt 0:00:10]} 35. Kg2 {[%emt 0:00:00]} Rb2 {[%emt 0:00:02]} 36. g4 {[%emt 0:00:00]} Kf6 {[%emt 0:00:06]} 37. h4 {[%emt 0:00:00]} Kg6 {[%emt 0:00:05]} 38. Ra7 {[%emt 0:00:00]} Rc2 {[%emt 0:00:04]} 39. Kg3 {[%emt 0:00:00]} Rc1 {[%emt 0:00:04]} 40. Rd7 {[%emt 0:00:00]} Rg1+ {[%emt 0:00:04]} 41. Kf3 {[%emt 0:00:00]} Rc1 {[%emt 0:00:04]} 42. Kf4 {[%emt 0:00:00]} Kf6 {[%emt 0:00:05]} 43. g5+ {[%emt 0:00:00]} hxg5+ {[%emt 0:00:01]} 44. hxg5+ {[%emt 0:00:00]} Ke6 {[%emt 0:00:01]} 45. Ra7 {[%emt 0:00:02]} Rc2 {[%emt 0:00:13]} 46. f3 {[%emt 0:00:04]} Rc4 {[%emt 0:00:01]} 47. Rc7 {[%emt 0:00:09]} Rc3 {[%emt 0:00:09]} 48. Rc8 {[%emt 0:00:20]} Ke7 {[%emt 0:00:12]} 49. Rg8 {[%emt 0:00:21]} g6 {[%emt 0:00:01]} 50. Rc8 {[%emt 0:00:04]} Kd7 {[%emt 0:00:03]} 51. Rf8 {[%emt 0:00:02]} Ke7 {[%emt 0:00:00]} 52. Rc8 {[%emt 0:00:02]} Kd7 {[%emt 0:00:01]} 1/2-1/2